[Event "Titled Tuesday Blitz February 14 Early 2023"]
[White "Titichoca Daza, Daniel"]
[Black "Srihari L R"]
[WhiteFideId "3309550"]
[BlackFideId "46617116"]
[WhiteElo "2180"]
[BlackElo "2416"]
[Result "0-1"]
[Round "02"]
[TimeControl "180+2"]
[Date "2023.02.15"]
[WhiteClock "0:01:13"]
[BlackClock "0:01:48"]

1. d4 {[%clk 0:03:00]}  d5 {[%clk 0:02:56]} 2. c4 {[%clk 0:02:57]}  e5 {[%clk 0:02:53]} 3. Nf3 {[%clk 0:02:42]}  e4 {[%clk 0:02:50]} 4. Nfd2 {[%clk 0:02:41]}  c6 {[%clk 0:02:51]} 5. e3 {[%clk 0:02:41]}  f5 {[%clk 0:02:50]} 6. b3 {[%clk 0:02:40]}  Nf6 {[%clk 0:02:51]} 7. Ba3 {[%clk 0:02:40]}  Bxa3 {[%clk 0:02:49]} 8. Nxa3 {[%clk 0:02:41]}  O-O {[%clk 0:02:49]} 9. Be2 {[%clk 0:02:39]}  Be6 {[%clk 0:02:46]} 10. O-O {[%clk 0:02:37]}  Nbd7 {[%clk 0:02:46]} 11. Nab1 {[%clk 0:02:32]}  g5 {[%clk 0:02:43]} 12. f4 {[%clk 0:02:17]}  gxf4 {[%clk 0:02:36]} 13. Rxf4 {[%clk 0:02:16]}  Rf7 {[%clk 0:02:36]} 14. Nc3 {[%clk 0:02:14]}  Nf8 {[%clk 0:02:35]} 15. Qf1 {[%clk 0:02:08]}  Ng6 {[%clk 0:02:35]} 16. Rxf5 {[%clk 0:02:09]}  Bxf5 {[%clk 0:02:31]} 17. Qxf5 {[%clk 0:02:10]}  Qa5 {[%clk 0:02:27]} 18. Rc1 {[%clk 0:02:06]}  Raf8 {[%clk 0:02:18]} 19. Qe6 {[%clk 0:02:04]}  Kh8 {[%clk 0:02:18]} 20. cxd5 {[%clk 0:02:03]}  cxd5 {[%clk 0:02:16]} 21. Nf1 {[%clk 0:01:50]}  Rc7 {[%clk 0:01:59]} 22. b4 {[%clk 0:01:27]}  Qa3 {[%clk 0:01:53]} 23. Nxd5 {[%clk 0:01:20]}  Rxc1 {[%clk 0:01:51]} 24. Nxf6 {[%clk 0:01:14]}  Qxe3+ {[%clk 0:01:49]} 25. Kh1 {[%clk 0:01:13]}  Qxe2 {[%clk 0:01:48]} 0-1


[Site "https://www.chess.com"]

[Event "Titled Tuesday Blitz February 14 Early 2023"]
[White "Guo, Josh"]
[Black "Dragnev, Valentin"]
[WhiteFideId "2682427"]
[BlackFideId "1634852"]
[WhiteElo "2112"]
[BlackElo "2593"]
[Result "0-1"]
[Round "02"]
[TimeControl "180+2"]
[Date "2023.02.15"]
[WhiteClock "0:00:11"]
[BlackClock "0:02:30"]

1. e4 {[%clk 0:02:55]}  c5 {[%clk 0:03:00]} 2. Nf3 {[%clk 0:02:54]}  d6 {[%clk 0:03:00]} 3. d4 {[%clk 0:02:54]}  cxd4 {[%clk 0:03:01]} 4. Nxd4 {[%clk 0:02:54]}  Nf6 {[%clk 0:03:02]} 5. Nc3 {[%clk 0:02:54]}  Nc6 {[%clk 0:03:02]} 6. Bc4 {[%clk 0:02:51]}  Bd7 {[%clk 0:03:02]} 7. Bb3 {[%clk 0:02:48]}  Rc8 {[%clk 0:03:02]} 8. Be3 {[%clk 0:02:48]}  Na5 {[%clk 0:03:02]} 9. Qe2 {[%clk 0:02:34]}  e6 {[%clk 0:02:59]} 10. O-O {[%clk 0:02:25]}  Be7 {[%clk 0:02:57]} 11. f4 {[%clk 0:02:20]}  O-O {[%clk 0:02:51]} 12. Kh1 {[%clk 0:02:08]}  a6 {[%clk 0:02:47]} 13. Rad1 {[%clk 0:01:59]}  Qc7 {[%clk 0:02:47]} 14. f5 {[%clk 0:01:45]}  Nxb3 {[%clk 0:02:43]} 15. axb3 {[%clk 0:01:31]}  b5 {[%clk 0:02:40]} 16. fxe6 {[%clk 0:01:00]}  fxe6 {[%clk 0:02:40]} 17. e5 {[%clk 0:00:57]}  dxe5 {[%clk 0:02:37]} 18. Nf3 {[%clk 0:00:56]}  b4 {[%clk 0:02:36]} 19. Na4 {[%clk 0:00:51]}  Bb5 {[%clk 0:02:36]} 20. Qe1 {[%clk 0:00:29]}  Bxf1 {[%clk 0:02:36]} 21. Qxf1 {[%clk 0:00:29]}  Nd5 {[%clk 0:02:32]} 22. Qd3 {[%clk 0:00:19]}  Qxc2 {[%clk 0:02:31]} 23. h3 {[%clk 0:00:12]}  Qxd3 {[%clk 0:02:30]} 24. Rxd3 {[%clk 0:00:11]}  e4 {[%clk 0:02:30]} 0-1


[Site "https://www.chess.com"]

[Event "Titled Tuesday Blitz February 14 Early 2023"]
[White "Csonka, Balazs"]
[Black "Jiganchine, Roman"]
[WhiteFideId "742910"]
[BlackFideId "2603667"]
[WhiteElo "2496"]
[BlackElo "2205"]
[Result "1-0"]
[Round "02"]
[TimeControl "180+2"]
[Date "2023.02.15"]
[WhiteClock "0:00:03"]
[BlackClock "0:00:01"]

1. e4 {[%clk 0:03:00]}  c6 {[%clk 0:02:58]} 2. d4 {[%clk 0:02:55]}  d5 {[%clk 0:02:53]} 3. exd5 {[%clk 0:02:56]}  cxd5 {[%clk 0:02:53]} 4. Bd3 {[%clk 0:02:55]}  Nc6 {[%clk 0:02:52]} 5. c3 {[%clk 0:02:55]}  Nf6 {[%clk 0:02:51]} 6. Bf4 {[%clk 0:02:51]}  Bg4 {[%clk 0:02:49]} 7. Qb3 {[%clk 0:02:51]}  Qc8 {[%clk 0:02:49]} 8. Nd2 {[%clk 0:02:41]}  e6 {[%clk 0:02:47]} 9. Ngf3 {[%clk 0:02:35]}  Be7 {[%clk 0:02:46]} 10. O-O {[%clk 0:02:33]}  O-O {[%clk 0:02:44]} 11. Ne5 {[%clk 0:02:34]}  Bh5 {[%clk 0:02:41]} 12. Qc2 {[%clk 0:02:31]}  Bg6 {[%clk 0:02:28]} 13. Nxg6 {[%clk 0:02:30]}  hxg6 {[%clk 0:02:28]} 14. Nf3 {[%clk 0:02:28]}  a6 {[%clk 0:02:18]} 15. a4 {[%clk 0:01:55]}  Na5 {[%clk 0:02:12]} 16. g3 {[%clk 0:01:47]}  Nc4 {[%clk 0:02:08]} 17. Qe2 {[%clk 0:01:39]}  Nd7 {[%clk 0:01:37]} 18. h4 {[%clk 0:01:33]}  Bf6 {[%clk 0:01:33]} 19. Kg2 {[%clk 0:01:11]}  Re8 {[%clk 0:01:32]} 20. Ne5 {[%clk 0:01:09]}  Bxe5 {[%clk 0:01:26]} 21. dxe5 {[%clk 0:01:10]}  Qc6 {[%clk 0:01:19]} 22. h5 {[%clk 0:00:40]}  g5 {[%clk 0:01:07]} 23. Bxg5 {[%clk 0:00:23]}  Ncxe5 {[%clk 0:01:00]} 24. h6 {[%clk 0:00:15]}  g6 {[%clk 0:00:43]} 25. Bf6 {[%clk 0:00:09]}  Nxf6 {[%clk 0:00:19]} 26. Qxe5 {[%clk 0:00:08]}  d4+ {[%clk 0:00:16]} 27. f3 {[%clk 0:00:09]}  Nh5 {[%clk 0:00:15]} 28. Rh1 {[%clk 0:00:05]}  f6 {[%clk 0:00:12]} 29. Qe2 {[%clk 0:00:04]}  Qd5 {[%clk 0:00:08]} 30. Bxg6 {[%clk 0:00:03]}  Re7 {[%clk 0:00:01]} 31. Rxh5 {[%clk 0:00:03]} 1-0


[Site "https://www.chess.com"]

[Event "Titled Tuesday Blitz February 14 Early 2023"]
[White "Sovetbekova, Nurai"]
[Black "Mindlin, Alon"]
[WhiteFideId "13801910"]
[BlackFideId "2800071"]
[WhiteElo "1764"]
[BlackElo "2435"]
[Result "0-1"]
[Round "02"]
[TimeControl "180+2"]
[Date "2023.02.15"]
[WhiteClock "0:00:04"]
[BlackClock "0:00:53"]

1. d4 {[%clk 0:03:00]}  Nf6 {[%clk 0:02:59]} 2. c4 {[%clk 0:03:00]}  e6 {[%clk 0:02:59]} 3. Nc3 {[%clk 0:02:57]}  Bb4 {[%clk 0:02:59]} 4. Bd2 {[%clk 0:02:57]}  b6 {[%clk 0:02:58]} 5. e3 {[%clk 0:02:56]}  Bb7 {[%clk 0:02:57]} 6. Nf3 {[%clk 0:02:55]}  O-O {[%clk 0:02:57]} 7. Bd3 {[%clk 0:02:55]}  d6 {[%clk 0:02:58]} 8. O-O {[%clk 0:02:53]}  Nbd7 {[%clk 0:02:58]} 9. Qc2 {[%clk 0:02:49]}  Bxf3 {[%clk 0:02:55]} 10. gxf3 {[%clk 0:02:49]}  c5 {[%clk 0:02:55]} 11. d5 {[%clk 0:02:44]}  Ne5 {[%clk 0:02:52]} 12. Be2 {[%clk 0:02:34]}  Bxc3 {[%clk 0:02:51]} 13. Bxc3 {[%clk 0:02:32]}  exd5 {[%clk 0:02:51]} 14. cxd5 {[%clk 0:02:26]}  Nxd5 {[%clk 0:02:51]} 15. f4 {[%clk 0:02:26]}  Nxc3 {[%clk 0:02:47]} 16. Qxc3 {[%clk 0:02:22]}  Ng6 {[%clk 0:02:48]} 17. Rad1 {[%clk 0:02:18]}  Qe7 {[%clk 0:02:43]} 18. Bf3 {[%clk 0:02:00]}  Rad8 {[%clk 0:02:42]} 19. Rd5 {[%clk 0:01:56]}  Nh4 {[%clk 0:02:41]} 20. e4 {[%clk 0:01:45]}  f5 {[%clk 0:02:25]} 21. Re1 {[%clk 0:01:05]}  fxe4 {[%clk 0:02:07]} 22. Rxe4 {[%clk 0:00:56]}  Qf6 {[%clk 0:02:07]} 23. Qb3 {[%clk 0:00:44]}  Kh8 {[%clk 0:01:49]} 24. Bh1 {[%clk 0:00:17]}  Rde8 {[%clk 0:01:25]} 25. Qe3 {[%clk 0:00:10]}  Rxe4 {[%clk 0:01:19]} 26. Qxe4 {[%clk 0:00:11]}  Qxb2 {[%clk 0:01:16]} 27. Rd1 {[%clk 0:00:07]}  Qxa2 {[%clk 0:01:12]} 28. Qe7 {[%clk 0:00:07]}  Ng6 {[%clk 0:01:07]} 29. Qxd6 {[%clk 0:00:06]}  Qf7 {[%clk 0:01:00]} 30. Be4 {[%clk 0:00:03]}  Qxf4 {[%clk 0:01:00]} 31. Bxg6 {[%clk 0:00:02]}  Qxd6 {[%clk 0:00:52]} 32. Rxd6 {[%clk 0:00:03]}  hxg6 {[%clk 0:00:53]} 33. Rxg6 {[%clk 0:00:04]}  Rc8 {[%clk 0:00:52]} 34. Rd6 {[%clk 0:00:04]}  c4 {[%clk 0:00:53]} 0-1


[Site "https://www.chess.com"]

[Event "Titled Tuesday Blitz February 14 Early 2023"]
[White "Ozates, Tuna"]
[Black "Tinmaz, Kerem"]
[WhiteFideId "6354521"]
[BlackFideId "44559151"]
[WhiteElo "2251"]
[BlackElo "2177"]
[Result "1-0"]
[Round "02"]
[TimeControl "180+2"]
[Date "2023.02.15"]
[WhiteClock "0:00:19"]
[BlackClock "0:00:01"]

1. e4 {[%clk 0:03:00]}  c6 {[%clk 0:02:59]} 2. d4 {[%clk 0:03:00]}  d5 {[%clk 0:02:58]} 3. exd5 {[%clk 0:03:00]}  cxd5 {[%clk 0:02:59]} 4. c4 {[%clk 0:03:00]}  Nf6 {[%clk 0:02:59]} 5. Nc3 {[%clk 0:03:01]}  Nc6 {[%clk 0:02:59]} 6. Nf3 {[%clk 0:03:01]}  Bg4 {[%clk 0:02:58]} 7. c5 {[%clk 0:03:01]}  e6 {[%clk 0:02:55]} 8. Bb5 {[%clk 0:03:01]}  Bxf3 {[%clk 0:02:47]} 9. gxf3 {[%clk 0:03:00]}  Qa5 {[%clk 0:02:37]} 10. a3 {[%clk 0:02:53]}  Be7 {[%clk 0:02:19]} 11. Rg1 {[%clk 0:02:52]}  Kf8 {[%clk 0:01:40]} 12. Bf4 {[%clk 0:02:39]}  Nh5 {[%clk 0:01:27]} 13. Be3 {[%clk 0:02:38]}  a6 {[%clk 0:01:15]} 14. Bd3 {[%clk 0:02:30]}  Qc7 {[%clk 0:00:47]} 15. Qd2 {[%clk 0:02:15]}  Bf6 {[%clk 0:00:41]} 16. Be2 {[%clk 0:02:06]}  Re8 {[%clk 0:00:28]} 17. f4 {[%clk 0:02:05]}  g6 {[%clk 0:00:26]} 18. Bxh5 {[%clk 0:01:56]}  gxh5 {[%clk 0:00:27]} 19. Rd1 {[%clk 0:01:53]}  Rg8 {[%clk 0:00:23]} 20. Rxg8+ {[%clk 0:01:51]}  Kxg8 {[%clk 0:00:24]} 21. Qe2 {[%clk 0:01:52]}  h4 {[%clk 0:00:21]} 22. Qh5 {[%clk 0:01:48]}  Kh8 {[%clk 0:00:15]} 23. f3 {[%clk 0:01:15]}  Rg8 {[%clk 0:00:15]} 24. Kf2 {[%clk 0:01:16]}  Ne7 {[%clk 0:00:13]} 25. Qxf7 {[%clk 0:01:12]}  Bg7 {[%clk 0:00:09]} 26. Qxe6 {[%clk 0:01:11]}  Ng6 {[%clk 0:00:07]} 27. Nxd5 {[%clk 0:01:09]}  Qa5 {[%clk 0:00:06]} 28. f5 {[%clk 0:01:06]}  Nf8 {[%clk 0:00:06]} 29. Qf7 {[%clk 0:00:59]}  Qb5 {[%clk 0:00:05]} 30. f6 {[%clk 0:00:55]}  Qxb2+ {[%clk 0:00:01]} 31. Rd2 {[%clk 0:00:55]}  Qc1 {[%clk 0:00:01]} 32. fxg7+ {[%clk 0:00:55]}  Rxg7 {[%clk 0:00:01]} 33. Qxf8+ {[%clk 0:00:55]}  Rg8 {[%clk 0:00:02]} 34. Qf6+ {[%clk 0:00:53]}  Rg7 {[%clk 0:00:03]} 35. Nf4 {[%clk 0:00:28]}  Qg1+ {[%clk 0:00:02]} 36. Ke2 {[%clk 0:00:29]}  Qb1 {[%clk 0:00:01]} 37. Nh5 {[%clk 0:00:21]}  Qb5+ {[%clk 0:00:01]} 38. Kf2 {[%clk 0:00:19]} 1-0


[Site "https://www.chess.com"]

[Event "Titled Tuesday Blitz February 14 Early 2023"]
[White "Nigmatov, Ortik"]
[Black "Davalos Prieto, Abel Justo"]
[WhiteFideId "14202131"]
[BlackFideId "5102766"]
[WhiteElo "2438"]
[BlackElo "2029"]
[Result "1-0"]
[Round "02"]
[TimeControl "180+2"]
[Date "2023.02.15"]
[WhiteClock "0:01:12"]
[BlackClock "0:00:15"]

1. e4 {[%clk 0:03:00]}  c5 {[%clk 0:02:58]} 2. Nf3 {[%clk 0:02:58]}  Nc6 {[%clk 0:02:57]} 3. d4 {[%clk 0:02:55]}  cxd4 {[%clk 0:02:47]} 4. Nxd4 {[%clk 0:02:55]}  Nf6 {[%clk 0:02:45]} 5. Nc3 {[%clk 0:02:55]}  d6 {[%clk 0:02:45]} 6. Bg5 {[%clk 0:02:53]}  e6 {[%clk 0:02:43]} 7. Qd2 {[%clk 0:02:53]}  a6 {[%clk 0:02:41]} 8. O-O-O {[%clk 0:02:53]}  Bd7 {[%clk 0:02:35]} 9. f3 {[%clk 0:02:53]}  Be7 {[%clk 0:02:24]} 10. h4 {[%clk 0:02:50]}  h6 {[%clk 0:02:18]} 11. Be3 {[%clk 0:02:50]}  h5 {[%clk 0:02:17]} 12. Bg5 {[%clk 0:02:50]}  Rc8 {[%clk 0:01:58]} 13. Kb1 {[%clk 0:02:49]}  Ne5 {[%clk 0:01:56]} 14. f4 {[%clk 0:02:47]}  Nc4 {[%clk 0:01:56]} 15. Bxc4 {[%clk 0:02:35]}  Rxc4 {[%clk 0:01:57]} 16. e5 {[%clk 0:02:30]}  dxe5 {[%clk 0:01:49]} 17. fxe5 {[%clk 0:02:30]}  Ng4 {[%clk 0:01:48]} 18. Ne4 {[%clk 0:02:00]}  O-O {[%clk 0:01:31]} 19. Qe2 {[%clk 0:01:40]}  Rc7 {[%clk 0:01:21]} 20. Rh3 {[%clk 0:01:32]}  Bxg5 {[%clk 0:00:56]} 21. hxg5 {[%clk 0:01:29]}  g6 {[%clk 0:00:48]} 22. Nf6+ {[%clk 0:01:29]}  Nxf6 {[%clk 0:00:47]} 23. gxf6 {[%clk 0:01:30]}  Rc5 {[%clk 0:00:25]} 24. Rxh5 {[%clk 0:01:21]}  gxh5 {[%clk 0:00:15]} 25. Qe3 {[%clk 0:01:12]} 1-0


[Site "https://www.chess.com"]

[Event "Titled Tuesday Blitz February 14 Early 2023"]
[White "Lenderman, Aleksandr"]
[Black "AidenRchess"]
[WhiteFideId "2021285"]
[WhiteElo "2572"]
[BlackElo "2517"]
[Result "1-0"]
[Round "02"]
[TimeControl "180+2"]
[Date "2023.02.15"]
[WhiteClock "0:01:33"]
[BlackClock "0:00:30"]

1. b3 {[%clk 0:02:54]}  Nf6 {[%clk 0:02:57]} 2. Bb2 {[%clk 0:02:54]}  d5 {[%clk 0:02:58]} 3. d3 {[%clk 0:02:51]}  g6 {[%clk 0:02:55]} 4. g3 {[%clk 0:02:44]}  Bg7 {[%clk 0:02:55]} 5. Bg2 {[%clk 0:02:45]}  O-O {[%clk 0:02:55]} 6. c4 {[%clk 0:02:45]}  d4 {[%clk 0:02:46]} 7. Nf3 {[%clk 0:02:40]}  c5 {[%clk 0:02:46]} 8. b4 {[%clk 0:02:39]}  Nc6 {[%clk 0:02:39]} 9. bxc5 {[%clk 0:02:36]}  Qa5+ {[%clk 0:02:32]} 10. Nbd2 {[%clk 0:02:34]}  Qxc5 {[%clk 0:02:31]} 11. Nb3 {[%clk 0:02:33]}  Qb4+ {[%clk 0:02:31]} 12. Qd2 {[%clk 0:02:33]}  Qxd2+ {[%clk 0:02:26]} 13. Kxd2 {[%clk 0:02:31]}  e5 {[%clk 0:02:24]} 14. Ng5 {[%clk 0:02:28]}  Bf5 {[%clk 0:02:12]} 15. Nc5 {[%clk 0:02:26]}  h6 {[%clk 0:01:47]} 16. Nge4 {[%clk 0:02:24]}  Nxe4+ {[%clk 0:01:45]} 17. Nxe4 {[%clk 0:02:25]}  b6 {[%clk 0:01:38]} 18. Ba3 {[%clk 0:02:22]}  Bxe4 {[%clk 0:01:33]} 19. Bxe4 {[%clk 0:02:20]}  Rfc8 {[%clk 0:01:33]} 20. Rhc1 {[%clk 0:02:14]}  Bf8 {[%clk 0:01:33]} 21. Bxf8 {[%clk 0:02:13]}  Kxf8 {[%clk 0:01:34]} 22. c5 {[%clk 0:02:09]}  b5 {[%clk 0:01:32]} 23. Rab1 {[%clk 0:02:09]}  a6 {[%clk 0:01:31]} 24. a4 {[%clk 0:02:08]}  Rab8 {[%clk 0:01:26]} 25. axb5 {[%clk 0:02:08]}  axb5 {[%clk 0:01:25]} 26. Ra1 {[%clk 0:02:05]}  b4 {[%clk 0:01:20]} 27. Ra6 {[%clk 0:02:03]}  Ne7 {[%clk 0:01:18]} 28. Rb6 {[%clk 0:02:01]}  f5 {[%clk 0:01:11]} 29. Bg2 {[%clk 0:01:47]}  b3 {[%clk 0:01:03]} 30. Rb1 {[%clk 0:01:44]}  Rxb6 {[%clk 0:00:58]} 31. cxb6 {[%clk 0:01:44]}  Kf7 {[%clk 0:00:41]} 32. b7 {[%clk 0:01:42]}  Rb8 {[%clk 0:00:41]} 33. Rxb3 {[%clk 0:01:42]}  Ke6 {[%clk 0:00:41]} 34. Rb6+ {[%clk 0:01:39]}  Kd7 {[%clk 0:00:42]} 35. f4 {[%clk 0:01:38]}  exf4 {[%clk 0:00:40]} 36. gxf4 {[%clk 0:01:39]}  h5 {[%clk 0:00:38]} 37. h4 {[%clk 0:01:37]}  Kc7 {[%clk 0:00:38]} 38. Rb4 {[%clk 0:01:36]}  Nc6 {[%clk 0:00:36]} 39. Rc4 {[%clk 0:01:36]}  Rxb7 {[%clk 0:00:35]} 40. Rxc6+ {[%clk 0:01:35]}  Kb8 {[%clk 0:00:35]} 41. Rxg6 {[%clk 0:01:34]}  Rb2+ {[%clk 0:00:35]} 42. Ke1 {[%clk 0:01:34]}  Rb1+ {[%clk 0:00:35]} 43. Kf2 {[%clk 0:01:35]}  Rb2 {[%clk 0:00:34]} 44. Rg5 {[%clk 0:01:34]}  Rb3 {[%clk 0:00:33]} 45. Rxh5 {[%clk 0:01:34]}  Rc3 {[%clk 0:00:33]} 46. Rxf5 {[%clk 0:01:34]}  Kc7 {[%clk 0:00:29]} 47. h5 {[%clk 0:01:32]}  Rc6 {[%clk 0:00:28]} 48. Bxc6 {[%clk 0:01:31]}  Kxc6 {[%clk 0:00:29]} 49. h6 {[%clk 0:01:32]}  Kd6 {[%clk 0:00:30]} 50. h7 {[%clk 0:01:32]}  Ke6 {[%clk 0:00:28]} 51. Re5+ {[%clk 0:01:32]}  Kd6 {[%clk 0:00:28]} 52. h8=Q {[%clk 0:01:32]}  Kc6 {[%clk 0:00:29]} 53. Qf6+ {[%clk 0:01:32]}  Kd7 {[%clk 0:00:29]} 54. Re7+ {[%clk 0:01:32]}  Kd8 {[%clk 0:00:30]} 55. Qf8# {[%clk 0:01:33]} 1-0


[Site "https://www.chess.com"]

[Event "Titled Tuesday Blitz February 14 Early 2023"]
[White "Bettalli, Francesco"]
[Black "Kamsky, Gata"]
[WhiteFideId "2816453"]
[BlackFideId "2000024"]
[WhiteElo "2252"]
[BlackElo "2665"]
[Result "0-1"]
[Round "02"]
[TimeControl "180+2"]
[Date "2023.02.15"]
[WhiteClock "0:00:01"]
[BlackClock "0:00:29"]

1. d4 {[%clk 0:02:30]}  Nf6 {[%clk 0:02:58]} 2. Nc3 {[%clk 0:02:25]}  d5 {[%clk 0:02:57]} 3. Bg5 {[%clk 0:02:24]}  c6 {[%clk 0:02:45]} 4. Bxf6 {[%clk 0:02:23]}  exf6 {[%clk 0:02:43]} 5. e4 {[%clk 0:02:24]}  Bb4 {[%clk 0:02:38]} 6. exd5 {[%clk 0:02:22]}  O-O {[%clk 0:02:38]} 7. Bd3 {[%clk 0:02:20]}  Qxd5 {[%clk 0:02:32]} 8. Nf3 {[%clk 0:01:55]}  Re8+ {[%clk 0:02:30]} 9. Kf1 {[%clk 0:01:55]}  Qd8 {[%clk 0:02:21]} 10. h3 {[%clk 0:01:53]}  Nd7 {[%clk 0:02:19]} 11. a3 {[%clk 0:01:48]}  Bd6 {[%clk 0:02:15]} 12. Ne4 {[%clk 0:01:49]}  Bc7 {[%clk 0:02:14]} 13. Ng3 {[%clk 0:01:49]}  g6 {[%clk 0:02:12]} 14. h4 {[%clk 0:01:48]}  h5 {[%clk 0:02:09]} 15. Qd2 {[%clk 0:01:45]}  f5 {[%clk 0:01:57]} 16. Qh6 {[%clk 0:01:36]}  Qf6 {[%clk 0:01:49]} 17. c3 {[%clk 0:00:43]}  Qg7 {[%clk 0:01:44]} 18. Qd2 {[%clk 0:00:39]}  Nb6 {[%clk 0:01:35]} 19. a4 {[%clk 0:00:30]}  a5 {[%clk 0:01:34]} 20. Ne2 {[%clk 0:00:26]}  Nd5 {[%clk 0:01:21]} 21. g3 {[%clk 0:00:24]}  Qf6 {[%clk 0:01:18]} 22. Kg2 {[%clk 0:00:23]}  f4 {[%clk 0:01:16]} 23. Rhf1 {[%clk 0:00:20]}  Bg4 {[%clk 0:01:14]} 24. Neg1 {[%clk 0:00:13]}  fxg3 {[%clk 0:01:12]} 25. Ne5 {[%clk 0:00:06]}  Bxe5 {[%clk 0:01:07]} 26. dxe5 {[%clk 0:00:07]}  Qxe5 {[%clk 0:01:04]} 27. Rae1 {[%clk 0:00:06]}  Nf4+ {[%clk 0:01:04]} 28. Kxg3 {[%clk 0:00:03]}  Ne2+ {[%clk 0:00:59]} 29. Kg2 {[%clk 0:00:04]}  Qd5+ {[%clk 0:00:52]} 30. f3 {[%clk 0:00:04]}  Nxg1 {[%clk 0:00:39]} 31. Kxg1 {[%clk 0:00:03]}  Rxe1 {[%clk 0:00:36]} 32. Rxe1 {[%clk 0:00:03]}  Qxf3 {[%clk 0:00:35]} 33. Be2 {[%clk 0:00:03]}  Qg3+ {[%clk 0:00:35]} 34. Kh1 {[%clk 0:00:03]}  Qxh4+ {[%clk 0:00:34]} 35. Kg2 {[%clk 0:00:03]}  Bh3+ {[%clk 0:00:33]} 36. Kf3 {[%clk 0:00:02]}  Re8 {[%clk 0:00:31]} 37. Bd3 {[%clk 0:00:01]}  Rxe1 {[%clk 0:00:29]} 0-1


[Site "https://www.chess.com"]

[Event "Titled Tuesday Blitz February 14 Early 2023"]
[White "Dragomirescu, Angela"]
[Black "Rakhmanov, Aleksandr"]
[WhiteFideId "1209914"]
[BlackFideId "4173708"]
[WhiteElo "2130"]
[BlackElo "2632"]
[Result "1/2-1/2"]
[Round "02"]
[TimeControl "180+2"]
[Date "2023.02.15"]
[WhiteClock "0:00:20"]
[BlackClock "0:00:12"]

1. e4 {[%clk 0:03:00]}  c5 {[%clk 0:02:59]} 2. Nf3 {[%clk 0:03:00]}  Nf6 {[%clk 0:03:00]} 3. e5 {[%clk 0:03:00]}  Nd5 {[%clk 0:03:00]} 4. Nc3 {[%clk 0:03:01]}  Nxc3 {[%clk 0:03:01]} 5. dxc3 {[%clk 0:03:02]}  Nc6 {[%clk 0:03:01]} 6. Bc4 {[%clk 0:03:01]}  e6 {[%clk 0:03:01]} 7. Qe2 {[%clk 0:03:01]}  Qb6 {[%clk 0:03:00]} 8. h4 {[%clk 0:02:59]}  h6 {[%clk 0:03:00]} 9. h5 {[%clk 0:02:59]}  Be7 {[%clk 0:03:00]} 10. b3 {[%clk 0:02:53]}  Qc7 {[%clk 0:02:59]} 11. Bf4 {[%clk 0:02:53]}  b6 {[%clk 0:02:56]} 12. Bg3 {[%clk 0:02:44]}  Bb7 {[%clk 0:02:51]} 13. Bd3 {[%clk 0:02:44]}  O-O-O {[%clk 0:02:39]} 14. O-O-O {[%clk 0:02:42]}  d5 {[%clk 0:02:38]} 15. exd6 {[%clk 0:02:39]}  Bxd6 {[%clk 0:02:38]} 16. Rh3 {[%clk 0:02:38]}  Rd7 {[%clk 0:02:18]} 17. Bxd6 {[%clk 0:02:32]}  Qxd6 {[%clk 0:02:17]} 18. Rg3 {[%clk 0:02:29]}  Qf4+ {[%clk 0:02:11]} 19. Kb2 {[%clk 0:02:26]}  Qf6 {[%clk 0:02:11]} 20. Be4 {[%clk 0:02:17]}  Rxd1 {[%clk 0:02:01]} 21. Qxd1 {[%clk 0:02:18]}  Rd8 {[%clk 0:02:00]} 22. Qe2 {[%clk 0:02:18]}  Ne7 {[%clk 0:01:37]} 23. Bxb7+ {[%clk 0:02:05]}  Kxb7 {[%clk 0:01:38]} 24. Qe5 {[%clk 0:02:06]}  Nf5 {[%clk 0:01:28]} 25. Rg4 {[%clk 0:01:53]}  Qxe5 {[%clk 0:01:10]} 26. Nxe5 {[%clk 0:01:54]}  f6 {[%clk 0:01:05]} 27. Nd3 {[%clk 0:01:55]}  e5 {[%clk 0:01:02]} 28. Re4 {[%clk 0:01:51]}  Nd6 {[%clk 0:00:59]} 29. Re2 {[%clk 0:01:51]}  Kc6 {[%clk 0:00:52]} 30. c4 {[%clk 0:01:43]}  Nf5 {[%clk 0:00:47]} 31. f4 {[%clk 0:01:37]}  Ng3 {[%clk 0:00:41]} 32. Re3 {[%clk 0:01:36]}  Nxh5 {[%clk 0:00:26]} 33. fxe5 {[%clk 0:01:35]}  f5 {[%clk 0:00:18]} 34. e6 {[%clk 0:01:12]}  Kd6 {[%clk 0:00:11]} 35. Re5 {[%clk 0:01:09]}  g6 {[%clk 0:00:07]} 36. Rd5+ {[%clk 0:01:05]}  Kc7 {[%clk 0:00:02]} 37. Ne5 {[%clk 0:01:05]}  Re8 {[%clk 0:00:02]} 38. Nxg6 {[%clk 0:01:04]}  Rxe6 {[%clk 0:00:02]} 39. Rxf5 {[%clk 0:01:05]}  Rxg6 {[%clk 0:00:02]} 40. Rxh5 {[%clk 0:01:05]}  Rxg2 {[%clk 0:00:03]} 41. Rxh6 {[%clk 0:01:06]}  Rg7 {[%clk 0:00:03]} 42. a3 {[%clk 0:01:01]}  Kb7 {[%clk 0:00:04]} 43. b4 {[%clk 0:01:01]}  Rc7 {[%clk 0:00:04]} 44. Kb3 {[%clk 0:01:01]}  Rc8 {[%clk 0:00:03]} 45. Rh7+ {[%clk 0:01:01]}  Kb8 {[%clk 0:00:04]} 46. c3 {[%clk 0:01:00]}  Rc6 {[%clk 0:00:04]} 47. Rh8+ {[%clk 0:00:55]}  Kb7 {[%clk 0:00:04]} 48. Rh7+ {[%clk 0:00:56]}  Kb8 {[%clk 0:00:04]} 49. Rh4 {[%clk 0:00:56]}  Rc7 {[%clk 0:00:04]} 50. Ka4 {[%clk 0:00:56]}  Kb7 {[%clk 0:00:05]} 51. Kb5 {[%clk 0:00:55]}  a6+ {[%clk 0:00:05]} 52. Ka4 {[%clk 0:00:56]}  Ka7 {[%clk 0:00:05]} 53. Kb3 {[%clk 0:00:50]}  Kb7 {[%clk 0:00:06]} 54. Rh5 {[%clk 0:00:51]}  Ka7 {[%clk 0:00:06]} 55. Rd5 {[%clk 0:00:50]}  Kb7 {[%clk 0:00:06]} 56. bxc5 {[%clk 0:00:41]}  bxc5 {[%clk 0:00:05]} 57. Rd6 {[%clk 0:00:42]}  Rc6 {[%clk 0:00:04]} 58. Rd7+ {[%clk 0:00:19]}  Kb6 {[%clk 0:00:04]} 59. Rd5 {[%clk 0:00:20]}  Re6 {[%clk 0:00:04]} 60. Ka4 {[%clk 0:00:19]}  Rg6 {[%clk 0:00:04]} 61. Re5 {[%clk 0:00:19]}  Rf6 {[%clk 0:00:04]} 62. Kb3 {[%clk 0:00:19]}  Rd6 {[%clk 0:00:05]} 63. Rd5 {[%clk 0:00:19]}  Rf6 {[%clk 0:00:05]} 64. Kc2 {[%clk 0:00:19]}  Re6 {[%clk 0:00:05]} 65. Kd3 {[%clk 0:00:19]}  Rc6 {[%clk 0:00:05]} 66. Rf5 {[%clk 0:00:18]}  Ka5 {[%clk 0:00:05]} 67. Ke4 {[%clk 0:00:18]}  Ka4 {[%clk 0:00:06]} 68. Kd5 {[%clk 0:00:18]}  Rc8 {[%clk 0:00:06]} 69. Rf6 {[%clk 0:00:19]}  a5 {[%clk 0:00:06]} 70. Rc6 {[%clk 0:00:19]}  Rxc6 {[%clk 0:00:07]} 71. Kxc6 {[%clk 0:00:20]}  Kxa3 {[%clk 0:00:07]} 72. Kxc5 {[%clk 0:00:21]}  Kb3 {[%clk 0:00:07]} 73. Kd4 {[%clk 0:00:20]}  a4 {[%clk 0:00:08]} 74. c5 {[%clk 0:00:21]}  a3 {[%clk 0:00:09]} 75. c6 {[%clk 0:00:22]}  a2 {[%clk 0:00:10]} 76. c7 {[%clk 0:00:23]}  a1=Q {[%clk 0:00:11]} 77. c8=Q {[%clk 0:00:23]}  Qd1+ {[%clk 0:00:11]} 78. Ke3 {[%clk 0:00:21]}  Qe1+ {[%clk 0:00:11]} 79. Kd4 {[%clk 0:00:22]}  Qd1+ {[%clk 0:00:12]} 80. Kc5 {[%clk 0:00:21]}  Kxc3 {[%clk 0:00:11]} 81. Qh8+ {[%clk 0:00:20]}  Kc2 {[%clk 0:00:11]} 82. Qh2+ {[%clk 0:00:20]}  Qd2 {[%clk 0:00:12]} 83. Qxd2+ {[%clk 0:00:20]}  Kxd2 {[%clk 0:00:12]} 1/2-1/2


[Site "https://www.chess.com"]